bitfinex-derivatives/quotes_SOLF0:USTF0_20250808
["timestamp","ask_amount","ask_price","bid_price","bid_amount"]
[1754664800382,3.19,176.2,176.17,122.21063699]
[1754664800587,7.16631325,176.19,176.17,357.21063699]
[1754664800880,3.97957551,176.18,176.17,357.21063699]
[1754664801387,7.18692393,176.18,176.17,357.21063699]
[1754664801588,3.97957551,176.18,176.17,357.21063699]
[1754664801780,7.18692393,176.18,176.17,357.21063699]
[1754664801981,3.97957551,176.18,176.17,357.21063699]
[1754664802280,10.37692393,176.18,176.17,351.53513699]
[1754664802881,7.18692393,176.18,176.17,357.21073699]
[1754664803281,4.71492393,176.18,176.17,357.21073699]
[1754664804188,3.19,176.27,176.21,5.674]
[1754664804384,3.19,176.27,176.22,116.43513699]
[1754664804687,8.8623,176.28,176.22,116.43513699]
[1754664804886,3.19,176.28,176.22,116.43513699]
[1754664805386,5.6722,176.28,176.22,116.43513699]
[1754664805685,3.19,176.27,176.22,116.43513699]
[1754664805882,3.19,176.27,176.22,122.10903699]
[1754664806480,3.19,176.26,176.24,6.59513699]
[1754664806687,3.19,176.26,176.25,109.82]
[1754664808282,7.84986961,176.26,176.25,108.40111732]
[1754664808489,7.84986961,176.26,176.25,104.1444123]
[1754664808687,3.19,176.26,176.25,104.1444123]
[1754664809184,7.84986961,176.26,176.25,104.1444123]
[1754664809379,3.19,176.26,176.25,104.1444123]
[1754664809790,8.8627,176.26,176.25,104.1444123]
[1754664810097,3.19,176.25,176.22,109.78]
[1754664810280,3.19,176.23,176.22,109.78]
[1754664811084,8.8636,176.23,176.22,109.78]
[1754664811284,11.88035868,176.23,176.19,109.76]
[1754664811583,3.19,176.2,176.19,109.76]
[1754664812385,7.88893806,176.2,176.19,109.76]
[1754664812585,4.69893806,176.2,176.19,109.76]
[1754664812785,13.56121262,176.2,176.19,109.76]
[1754664812989,8.8646,176.2,176.19,109.76]
[1754664813292,3.19,176.19,176.13,5.6766]
[1754664813494,4.69668935,176.15,176.14,109.72]
[1754664813993,3.19,176.15,176.14,109.72]
[1754664814184,3.19,176.15,176.1,385.05652217]
[1754664814388,4.68833394,176.14,176.12,109.72]
[1754664814690,3.19,176.13,176.12,109.72]
[1754664815285,7.87833394,176.13,176.12,109.72]
[1754664815486,3.19,176.13,176.12,109.72]
[1754664816297,6.31333482,176.13,176.12,109.72]
[1754664816482,3.12333482,176.13,176.12,109.72]
[1754664816687,3.12333482,176.13,176.12,116.3403872]
[1754664816987,11.01396593,176.13,176.12,109.72]
[1754664817595,12.58558728,176.13,176.12,109.72]
[1754664818390,6.32333482,176.13,176.12,109.72]
[1754664818796,7.81216573,176.13,176.12,109.72]
[1754664819092,3.12333482,176.13,176.12,109.72]
[1754664819292,3.12333482,176.13,176.12,122.0175872]
[1754664820291,3.12333482,176.13,176.12,116.3403872]
[1754664821294,3.12333482,176.13,176.12,122.0175872]
[1754664821597,4.68883091,176.17,176.12,116.3403872]
[1754664821893,4.68883091,176.17,176.14,6.6203872]
[1754664822089,4.68883091,176.17,176.15,109.66]
[1754664822299,7.88883091,176.17,176.15,109.66]
[1754664822797,4.68883091,176.17,176.15,109.66]
[1754664822997,3.2,176.16,176.15,109.66]
[1754664823193,7.88883091,176.16,176.15,109.66]
[1754664825898,4.68883091,176.16,176.15,109.66]
[1754664826088,4.68883091,176.17,176.15,344.66]
[1754664826294,4.68883091,176.18,176.17,5.6756]
[1754664826489,4.68883091,176.2,176.17,109.62]
[1754664826700,3.2,176.2,176.17,116.2403872]
[1754664827095,7.88883091,176.2,176.17,116.2403872]
[1754664827399,3.2,176.18,176.17,116.2403872]
[1754664827996,4.68883091,176.2,176.17,116.2403872]
[1754664828202,7.88883091,176.19,176.17,116.2403872]
[1754664828601,6.26225246,176.22,176.17,116.2403872]
[1754664828602,3.2,176.2,176.17,116.2403872]
[1754664828799,4.68883091,176.2,176.17,116.2403872]
[1754664828995,3.2,176.19,176.17,121.9158872]
[1754664829504,7.88883091,176.2,176.17,116.2403872]
[1754664829697,3.2,176.2,176.17,116.2403872]
[1754664829898,4.68883091,176.21,176.19,6.6203872]
[1754664830100,4.68883091,176.21,176.2,109.58]
[1754664830403,3.2,176.2,176.18,109.56]
[1754664830599,3.2,176.2,176.19,109.56]
[1754664831201,9.46225246,176.2,176.19,109.56]
[1754664832008,3.2,176.2,176.19,105.30219756]
[1754664832704,6.26225246,176.22,176.19,105.30219756]
[1754664832906,3.2,176.21,176.19,105.30219756]
[1754664833105,4.69198799,176.2,176.19,105.30219756]
[1754664833309,7.89198799,176.21,176.19,105.30219756]
[1754664833607,3.05653332,176.2,176.19,105.30219756]
[1754664833801,7.14707393,176.2,176.19,105.30219756]
[1754664834007,15.03906192,176.2,176.19,105.30219756]
[1754664834702,10.34707393,176.2,176.19,105.30219756]
[1754664835910,10.34707393,176.2,176.19,102.46367005]
[1754664836898,22.28440597,176.2,176.19,102.46367005]
[1754664837101,3.2,176.19,176.16,109.5]
[1754664837302,3.2,176.17,176.16,109.5]
[1754664837610,10.34755351,176.17,176.16,109.5]
[1754664838013,7.14755351,176.17,176.16,109.5]
[1754664838713,10.34755351,176.17,176.16,109.5]
[1754664839114,7.14755351,176.17,176.16,113.55978268]
[1754664840110,3.2,176.2,176.16,113.55978268]
[1754664840111,2.97949977,176.18,176.16,113.55978268]
[1754664840304,4.69136151,176.23,176.16,348.55978268]
[1754664840511,7.89136151,176.22,176.21,4.05978268]
[1754664840707,3.2,176.22,176.21,109.46]
[1754664842316,9.46225246,176.26,176.21,113.51978268]
[1754664842518,9.46225246,176.29,176.25,4.05978268]
[1754664842722,9.46225246,176.29,176.21,113.51978268]
[1754664842723,3.2,176.29,176.27,4.05978268]
[1754664843220,3.2,176.29,176.28,109.44]
[1754664844125,9.46225246,176.29,176.28,109.44]
[1754664844924,9.46225246,176.29,176.28,105.18393596]
[1754664845529,15.13395246,176.29,176.28,105.18393596]
[1754664845721,9.46225246,176.29,176.28,105.18393596]
[1754664846227,3.2,176.29,176.28,105.18393596]
[1754664846519,6.26225246,176.31,176.28,111.79308714]
[1754664846725,9.37225246,176.33,176.3,6.60915118]
[1754664846922,6.26225246,176.33,176.3,6.60915118]
[1754664847116,3.11,176.31,176.28,111.79308714]
[1754664847319,5.6706,176.33,176.28,111.79308714]
[1754664847518,3.11,176.32,176.3,6.60915118]
[1754664847825,3.11,176.34,176.3,6.60915118]
[1754664848122,3.11,176.33,176.3,6.60915118]
[1754664848324,3.11,176.33,176.3,12.28025118]
[1754664848828,3.11,176.33,176.3,6.60915118]
[1754664849027,3.11,176.32,176.3,6.60915118]
[1754664849824,3.11,176.31,176.28,105.18393596]
[1754664850027,3.11,176.29,176.28,111.79308714]
[1754664850222,3.11,176.29,176.28,105.18393596]
[1754664852127,7.05353383,176.29,176.28,105.18393596]
[1754664852528,7.05212625,176.29,176.28,105.18393596]
[1754664854524,6.09071513,176.29,176.28,105.18393596]
[1754664854729,7.04916691,176.29,176.28,105.18393596]
[1754664855433,3.93916691,176.29,176.28,111.79308714]
[1754664855831,3.93916691,176.29,176.28,117.46508714]
[1754664856027,3.93916691,176.29,176.28,111.79308714]
[1754664856229,7.04916691,176.29,176.28,105.18393596]
[1754664856431,3.93916691,176.29,176.28,105.18393596]
[1754664856930,3.93916691,176.29,176.28,110.85593596]
[1754664857925,3.93284138,176.32,176.28,105.18393596]
[1754664858127,3.93284138,176.31,176.28,105.18393596]
[1754664858332,7.04284138,176.3,176.28,105.18393596]
[1754664858531,3.93284138,176.29,176.28,105.18393596]
[1754664858738,7.04284138,176.29,176.28,105.18393596]
[1754664860137,3.93284138,176.29,176.28,105.18393596]
[1754664860842,3.93284138,176.3,176.28,105.18393596]
[1754664861133,6.0808209,176.33,176.3,5.6711]
[1754664861326,3.8788106,176.32,176.31,6.60915118]
[1754664861527,6.9888106,176.32,176.31,109.2]
[1754664863635,9.9596315,176.32,176.31,109.2]
[1754664864340,6.9888106,176.32,176.31,109.2]
[1754664864938,3.8788106,176.32,176.31,115.80915118]
[1754664865538,6.9888106,176.32,176.31,115.80915118]
[1754664866646,3.8788106,176.32,176.31,356.48015118]
[1754664866845,2.97554643,176.35,176.31,115.80915118]
[1754664867039,3.11,176.38,176.33,6.60915118]
[1754664867238,2.97554643,176.38,176.35,6.60915118]
[1754664867550,3.11,176.38,176.36,109.14]
[1754664867735,2.97554643,176.38,176.36,109.14]
[1754664867936,3.11,176.37,176.36,104.88637271]
[1754664868139,2.97554643,176.39,176.26,235.0]
[1754664868341,2.97554643,176.38,176.33,6.60915118]
[1754664868544,2.97554643,176.4,176.34,109.12]
[1754664868841,2.97554643,176.39,176.34,109.12]
[1754664869047,3.11,176.37,176.34,109.12]
[1754664869441,3.11,176.37,176.34,114.79]
[1754664870445,3.11,176.38,176.34,109.12]
[1754664870643,2.97554643,176.37,176.34,109.12]
[1754664870842,2.97554643,176.36,176.34,109.12]
[1754664871042,3.11,176.35,176.34,109.12]
[1754664874349,6.08554643,176.35,176.34,109.12]
[1754664874553,3.11,176.35,176.34,109.12]
[1754664874747,6.08554643,176.37,176.34,113.17257654]
[1754664874947,3.11,176.37,176.34,113.17257654]
[1754664875249,3.11,176.37,176.34,118.84237654]
[1754664875450,3.11,176.37,176.34,113.17257654]
[1754664875652,6.08554643,176.37,176.34,118.84247654]
[1754664875958,3.05,176.38,176.34,113.17257654]
[1754664876153,3.05,176.35,176.34,113.17257654]
[1754664876351,3.05,176.37,176.34,113.17257654]
[1754664876552,3.05,176.36,176.34,113.17257654]
[1754664876752,2.97554643,176.38,176.34,113.17257654]
[1754664876948,3.05,176.36,176.34,109.12]
[1754664877250,3.05,176.35,176.34,109.12]
[1754664877451,6.02554643,176.35,176.34,109.12]
[1754664877654,3.05,176.35,176.34,109.12]
[1754664878052,2.97554643,176.36,176.34,109.12]
[1754664878254,2.97554643,176.37,176.34,109.12]
[1754664878458,3.05,176.38,176.35,5.6698]
[1754664878757,3.05,176.36,176.34,113.17257654]
[1754664879454,2.97554643,176.4,176.34,113.17257654]
[1754664879657,2.97554643,176.4,176.34,109.12]
[1754664879859,3.05,176.39,176.37,4.05257654]
[1754664880056,6.02554643,176.39,176.38,109.0]
[1754664880358,6.02554643,176.39,176.38,104.74691653]
[1754664880555,3.05,176.38,176.33,109.0]
[1754664880755,3.05,176.36,176.33,112.14]
[1754664881058,3.05,176.34,176.33,112.14]
[1754664882053,3.05,176.35,176.34,3.14]
[1754664882355,3.05,176.34,176.33,112.14]
[1754664882557,6.02643256,176.34,176.33,112.14]
[1754664882757,3.05,176.34,176.33,112.14]
[1754664883261,6.02643256,176.34,176.33,109.0]
[1754664883952,6.02643256,176.34,176.29,108.96]
[1754664883953,3.05,176.33,176.29,108.96]
[1754664884263,6.02643256,176.32,176.31,3.14]
[1754664884453,6.02643256,176.32,176.3,108.96]
[1754664884652,11.93225246,176.35,176.3,108.96]
[1754664884653,6.02643256,176.31,176.3,112.1]
[1754664885053,2.97643256,176.31,176.3,117.7714]
[1754664885258,2.97643256,176.31,176.3,112.1]
[1754664885560,6.02643256,176.31,176.3,112.1]
[1754664886161,2.97643256,176.31,176.3,112.1]
[1754664886960,6.02643256,176.31,176.3,108.96]
[1754664887259,6.02643256,176.31,176.3,112.1]
[1754664887655,2.97643256,176.31,176.3,112.1]
[1754664887954,6.02643256,176.31,176.3,112.1]
[1754664889055,6.02643256,176.31,176.3,108.96]
[1754664889261,6.02643256,176.31,176.3,112.1]
[1754664890058,2.97643256,176.31,176.3,112.1]
[1754664890262,6.02643256,176.31,176.3,112.1]
[1754664890458,6.02643256,176.31,176.3,104.7051991]
[1754664891060,3.05,176.31,176.3,104.7051991]
[1754664891256,6.04224021,176.31,176.3,104.7051991]
[1754664891567,12.30449267,176.31,176.3,104.7051991]
[1754664891763,6.04224021,176.31,176.3,107.8451991]
[1754664892763,2.99224021,176.31,176.3,113.5165991]
[1754664893170,0.52024021,176.31,176.3,113.5165991]
[1754664893465,3.05,176.33,176.31,3.14]
[1754664893662,3.05,176.33,176.32,3.14]
[1754664894055,6.26225246,176.34,176.33,3.14]
[1754664894259,6.26225246,176.35,176.34,3.14]
[1754664894563,9.31225246,176.36,176.33,108.9]
[1754664894770,6.26225246,176.36,176.35,3.14]
[1754664894960,9.31225246,176.37,176.36,3.14]
[1754664895161,9.31225246,176.37,176.36,112.04]
[1754664895866,9.31225246,176.37,176.36,108.9]
[1754664896271,3.05,176.36,176.24,3.14]
[1754664896570,3.05,176.35,176.31,3.14]
[1754664896766,3.05,176.35,176.33,3.14]
[1754664897068,9.28556865,176.37,176.34,3.14]
[1754664897267,6.23556865,176.36,176.33,3.14]
[1754664897471,3.05,176.34,176.33,3.14]
[1754664897964,3.05,176.34,176.32,108.88]
[1754664898166,3.05,176.33,176.32,112.02]
[1754664898671,3.05,176.33,176.32,108.88]
[1754664900264,3.05,176.33,176.32,112.02]
[1754664900567,3.05,176.33,176.32,107.76561743]
[1754664900768,6.23556865,176.34,176.33,3.14]
[1754664900965,3.05,176.34,176.33,3.14]
[1754664901367,6.23556865,176.35,176.33,3.14]
[1754664901563,9.28556865,176.36,176.33,3.14]
[1754664901763,9.28556865,176.36,176.32,114.34889397]
[1754664901970,9.28556865,176.35,176.34,3.14]
[1754664902965,9.28556865,176.35,176.32,108.67819397]
[1754664902966,3.05,176.34,176.32,104.62561743]
[1754664903171,3.05,176.33,176.32,104.62561743]
[1754664903370,9.28556865,176.33,176.32,107.76561743]
[1754664903774,9.28556865,176.33,176.32,104.62561743]
[1754664903966,6.23556865,176.34,176.32,107.76561743]
[1754664904275,4.05257654,176.39,176.32,104.62561743]
[1754664904276,6.23556865,176.33,176.32,104.62561743]
[1754664904477,9.28556865,176.33,176.32,104.62561743]
[1754664904678,9.28556865,176.33,176.32,107.76561743]
[1754664904868,3.05,176.33,176.32,107.76561743]
[1754664905069,9.28556865,176.33,176.32,107.76561743]
[1754664905272,12.22301555,176.33,176.32,107.76561743]
[1754664906476,9.17301555,176.33,176.32,107.76561743]
[1754664906675,2.9374469,176.33,176.32,107.76561743]
[1754664906866,2.9374469,176.33,176.32,111.81819397]
[1754664907271,7.63026999,176.33,176.32,111.81819397]
[1754664907575,6.2274469,176.33,176.32,104.62561743]
[1754664907778,12.46301555,176.33,176.32,104.62561743]
[1754664908576,12.46301555,176.33,176.32,107.77561743]
[1754664908973,12.46301555,176.33,176.32,104.62561743]
[1754664909677,12.46301555,176.33,176.32,107.77561743]
[1754664909978,12.46301555,176.33,176.32,104.62561743]
[1754664910174,6.2274469,176.33,176.32,104.62561743]
[1754664910480,6.2274469,176.33,176.32,100.3710026]
[1754664910682,11.8978469,176.33,176.32,100.3710026]
[1754664911381,3.29,176.32,176.3,111.91]
[1754664911581,9.19755518,176.31,176.3,108.76]
[1754664911777,6.2274469,176.31,176.3,108.76]
[1754664912681,11.8984469,176.31,176.3,108.76]
[1754664913678,3.29,176.3,176.26,3.15]
[1754664913871,3.29,176.26,176.22,381.4]
[1754664914075,3.29,176.26,176.12,4.76961075]
[1754664914076,3.29,176.22,176.2,3.15]
[1754664914271,3.29,176.22,176.17,4.05257654]
[1754664914272,2.9374469,176.21,176.17,4.05257654]
[1754664914481,7.98183129,176.22,176.18,108.74]
[1754664914482,2.9374469,176.2,176.18,108.74]
[1754664914680,2.9374469,176.2,176.17,4.05257654]
[1754664914681,2.9374469,176.19,176.17,4.05257654]
[1754664914880,2.9374469,176.18,176.17,7.20257654]
[1754664915079,2.9374469,176.19,176.17,7.20257654]
[1754664915278,2.9374469,176.19,176.18,3.15]
[1754664915780,2.9374469,176.2,176.17,4.05257654]
[1754664915978,2.9374469,176.19,176.17,4.05257654]
[1754664916181,7.62927819,176.21,176.17,4.05257654]
[1754664916381,2.9374469,176.2,176.18,3.15]
[1754664916583,2.9374469,176.2,176.19,111.89]
[1754664917486,2.9374469,176.21,176.2,3.15]
[1754664917884,6.2274469,176.21,176.19,108.74]
[1754664918085,7.62927819,176.21,176.19,111.89]
[1754664918278,3.92713807,176.2,176.19,108.74]
[1754664918478,7.21713807,176.2,176.19,108.74]
[1754664918980,10.15458497,176.2,176.19,108.74]
[1754664919180,10.15458497,176.2,176.19,111.89]
[1754664919582,7.21713807,176.2,176.19,111.89]
[1754664920277,5.676,176.16,176.12,381.14]
[1754664920479,3.29,176.14,176.13,108.72]
[1754664920679,2.9374469,176.18,176.14,3.15]
[1754664920879,3.29,176.19,176.16,4.05257654]
[1754664921085,3.29,176.19,176.18,3.15]
[1754664921486,4.69183129,176.21,176.17,111.89]
[1754664921784,3.29,176.19,176.18,3.15]
[1754664921985,3.29,176.18,176.17,108.74]
[1754664922374,3.29,176.18,176.14,108.72]
[1754664922575,3.29,176.17,176.14,108.72]
[1754664923183,8.6127469,176.18,176.14,111.87]
[1754664923386,3.29,176.15,176.14,111.87]
[1754664923683,2.9374469,176.17,176.15,8.8262]
[1754664923882,3.29,176.19,176.17,3.15]
[1754664924179,3.29,176.21,176.18,3.15]
[1754664924386,3.29,176.2,176.19,3.15]
[1754664924583,3.29,176.19,176.17,115.92257654]
[1754664925581,4.69183129,176.22,176.17,111.87]
[1754664925582,3.29,176.18,176.17,111.87]
[1754664926186,4.69183129,176.22,176.17,108.72]
[1754664926486,4.69183129,176.23,176.18,4.05257654]
[1754664926689,3.29,176.2,176.19,3.15]
[1754664926890,3.29,176.22,176.19,3.15]
[1754664927090,3.29,176.22,176.21,3.15]
[1754664927282,7.62927819,176.25,176.21,3.15]
[1754664927477,3.29,176.25,176.22,3.15]
[1754664927682,3.29,176.24,176.22,3.15]
[1754664927885,3.29,176.23,176.22,3.15]
[1754664928386,3.29,176.22,176.21,3.15]
[1754664929279,2.9374469,176.25,176.2,112.77257654]
[1754664929591,3.29,176.21,176.18,108.7]
[1754664929789,7.34257654,176.21,176.15,3.15]
[1754664929989,3.29,176.2,176.17,108.7]
[1754664930188,6.2274469,176.2,176.17,108.7]
[1754664930392,3.29,176.18,176.17,108.7]
[1754664930592,2.9374469,176.21,176.17,111.85]
[1754664930890,3.29,176.18,176.17,108.7]
[1754664931388,3.29,176.18,176.17,111.85]
[1754664931588,3.29,176.19,176.18,3.15]
[1754664931787,3.29,176.19,176.17,111.85]
[1754664932289,2.9374469,176.2,176.18,3.15]
[1754664932489,7.62927819,176.22,176.18,3.15]
[1754664932687,3.29,176.2,176.18,3.15]
[1754664932884,4.69183129,176.22,176.18,3.15]
[1754664932885,3.29,176.19,176.18,3.15]
[1754664933085,2.9374469,176.2,176.17,108.7]
[1754664933286,3.29,176.18,176.17,111.85]
[1754664934092,6.2274469,176.2,176.17,111.85]
[1754664934393,3.29,176.19,176.18,3.15]
[1754664934593,3.29,176.19,176.17,108.7]
[1754664935291,3.29,176.18,176.17,108.7]
[1754664935690,4.05257654,176.2,176.11,3.15]
[1754664935892,4.05257654,176.16,176.13,108.66]
[1754664936193,3.18,176.15,176.12,108.66]
[1754664936383,3.18,176.12,176.11,108.66]
[1754664936895,3.18,176.12,176.11,111.75]
[1754664937092,3.18,176.12,176.11,108.66]
[1754664937394,8.8572,176.12,176.11,108.66]
[1754664938287,8.8572,176.12,176.11,111.75]
[1754664938485,3.18,176.12,176.11,111.75]
[1754664939794,3.18,176.12,176.11,108.66]
[1754664940198,3.18,176.12,176.11,111.75]
[1754664940896,3.18,176.14,176.11,108.66]
[1754664941104,3.18,176.14,176.13,3.09]
[1754664941685,2.88307579,176.17,176.11,118.39007654]
[1754664941885,3.18,176.16,176.15,3.09]
[1754664942789,3.18,176.16,176.11,118.38997654]
[1754664942790,3.18,176.17,176.13,3.09]
[1754664942986,3.18,176.14,176.11,108.66]
[1754664943186,3.18,176.14,175.99,11.3624]
[1754664943487,3.18,176.13,176.07,3.09]
[1754664943692,4.05257654,176.12,176.07,3.09]
[1754664943896,3.18,176.11,176.07,3.09]
[1754664944096,3.18,176.1,176.07,3.09]
[1754664944395,5.6776,176.11,176.08,3.09]
[1754664944396,3.18,176.09,176.08,3.09]
[1754664945184,2.88307579,176.11,176.08,3.09]
[1754664945389,3.18,176.11,176.09,3.09]
[1754664945589,3.18,176.11,176.1,3.09]
[1754664946895,6.06307579,176.13,176.1,3.09]
[1754664947098,3.18,176.12,176.11,3.09]
[1754664947288,2.88307579,176.15,176.12,3.09]
[1754664947488,2.88307579,176.16,176.15,3.09]
[1754664947688,3.18,176.16,176.15,3.09]
[1754664948489,3.18,176.16,176.12,4.05257654]
[1754664948686,4.64405535,176.18,176.13,3.09]
[1754664948892,3.18,176.16,176.12,4.05257654]
[1754664949099,7.52713114,176.18,176.13,3.09]
[1754664949301,3.18,176.17,176.13,3.09]
[1754664949493,10.31945535,176.18,176.12,4.05257654]
[1754664949690,3.18,176.16,176.14,3.09]
[1754664950095,3.18,176.16,176.11,3.09]
[1754664950296,3.18,176.16,176.13,3.09]
[1754664950595,3.18,176.15,176.14,3.09]
[1754664950893,6.25583206,176.2,176.15,3.09]
[1754664950894,2.88307579,176.17,176.15,3.09]
[1754664951094,3.18,176.19,176.16,7.14257654]
[1754664951400,3.18,176.19,176.18,3.09]
[1754664951594,3.18,176.19,176.16,4.05257654]
[1754664951797,8.55827579,176.19,176.15,108.6]
[1754664951995,3.18,176.18,176.15,108.6]
[1754664952293,10.70713114,176.18,176.15,108.6]
[1754664952495,2.88307579,176.17,176.16,4.05257654]
[1754664952693,3.18,176.18,176.16,4.05257654]
[1754664953089,2.88307579,176.19,176.16,4.05257654]
[1754664953296,3.18,176.17,176.16,4.05257654]
[1754664954189,7.52713114,176.18,176.15,108.6]
[1754664954394,3.18,176.16,176.15,111.69]
[1754664954596,2.88307579,176.17,176.15,111.69]
[1754664954795,3.18,176.17,176.15,111.69]
[1754664955193,2.92020963,176.18,176.17,3.09]
[1754664955395,2.92020963,176.2,176.16,4.05257654]
[1754664955694,4.64405535,176.25,176.2,3.09]
[1754664955900,4.64405535,176.26,176.24,7.14257654]
[1754664956098,7.82405535,176.26,176.24,7.14257654]
[1754664956400,3.18,176.25,176.23,108.54]
[1754664956595,7.83980387,176.24,176.23,108.54]
[1754664956996,4.65980387,176.25,176.23,108.54]
[1754664957194,4.65980387,176.25,176.24,3.09]
[1754664957395,4.65980387,176.25,176.24,7.14257654]
[1754664957801,4.65980387,176.25,176.24,4.05257654]
[1754664957802,7.83980387,176.25,176.24,4.05257654]
[1754664958002,4.65980387,176.26,176.24,7.14257654]
[1754664958202,4.65980387,176.26,176.25,3.09]
[1754664958397,7.83980387,176.26,176.24,4.05257654]
[1754664958604,7.83980387,176.25,176.24,7.14257654]
[1754664958899,7.83980387,176.25,176.24,3.09]
[1754664959105,4.65980387,176.25,176.24,3.09]
[1754664959309,4.65980387,176.26,176.25,3.09]
[1754664960303,4.65980387,176.26,176.25,9.70030245]
[1754664960705,4.65980387,176.28,176.26,3.09]
[1754664961008,7.83980387,176.28,176.26,3.09]
[1754664961308,7.83980387,176.3,176.28,3.09]
[1754664961612,4.65980387,176.32,176.31,3.09]
[1754664961806,7.83980387,176.32,176.29,6.61030245]
[1754664962110,3.18,176.32,176.29,6.61030245]
[1754664963015,4.65980387,176.34,176.31,6.61030245]
[1754664963208,3.18,176.33,176.32,108.46]
[1754664966921,7.83980387,176.33,176.27,108.4]
[1754664967220,3.01,176.32,176.27,114.5123]
[1754664967523,6.0154572,176.32,176.27,114.5123]
[1754664967709,3.01,176.32,176.27,108.84]
[1754664967915,3.01,176.31,176.27,108.4]
[1754664969019,3.01,176.31,176.28,0.44]
[1754664969222,6.0154572,176.32,176.3,0.44]
[1754664969418,3.0054572,176.35,176.31,114.99030245]
[1754664969726,3.01,176.36,176.33,7.05030245]
[1754664969919,3.01,176.36,176.34,108.36]
[1754664970224,6.25583206,176.41,176.35,0.44]
[1754664970225,3.01,176.37,176.35,0.44]
[1754664970722,3.01,176.39,176.35,0.44]
[1754664971023,3.0054572,176.4,176.39,0.44]
[1754664971213,3.0054572,176.44,176.39,114.0283]
[1754664971411,15.95211773,176.51,176.41,6.61030245]
[1754664971412,3.01,176.43,176.41,6.61030245]
[1754664971616,3.01,176.42,176.39,114.97030245]
[1754664971920,3.0054572,176.47,176.42,0.44]
[1754664972121,3.01,176.49,176.44,6.61030245]
[1754664972314,3.01,176.48,176.44,7.05030245]
[1754664972514,3.01,176.47,176.44,7.05030245]
[1754664972725,3.01,176.47,176.45,0.44]
[1754664972925,3.05328171,176.48,176.45,0.44]
[1754664973221,0.04328171,176.48,176.46,7.05030245]
[1754664973422,0.04328171,176.48,176.47,108.32]
[1754664973621,3.05328171,176.48,176.47,108.32]
[1754664977314,3.05328171,176.48,176.44,108.29971861]
[1754664977720,8.6762,176.47,176.44,108.29971861]
[1754664977924,3.01900847,176.48,176.44,108.29971861]
[1754664977925,3.01,176.45,176.44,108.29971861]
[1754664978420,3.01,176.45,176.44,0.03971861]
[1754664979715,8.6766,176.45,176.44,0.03971861]
[1754664980024,3.01,176.45,176.44,0.03971861]
[1754664980222,9.62030245,176.45,176.44,0.03971861]
[1754664980428,18.25558021,176.45,176.44,0.03971861]
[1754664980727,3.01,176.44,176.41,108.24]
[1754664980927,5.97867776,176.44,176.41,108.24]
[1754664981116,3.01,176.43,176.41,108.24]
[1754664982027,3.01,176.41,176.37,108.2]
[1754664982227,9.62030245,176.41,176.37,108.2]
[1754664982533,3.01,176.39,176.37,108.2]
[1754664982727,3.01,176.38,176.37,108.2]
[1754664983616,3.04890045,176.39,176.37,108.63]
[1754664983821,3.01,176.38,176.37,108.2]
[1754664984733,3.01,176.38,176.33,86.21561004]
[1754664984931,3.01,176.38,176.33,108.18]
[1754664985129,3.01,176.37,176.33,108.18]
[1754664985320,2.97166927,176.38,176.28,381.43]
[1754664985321,6.61030245,176.35,176.28,381.43]
[1754664985524,3.01,176.34,176.29,108.18]
[1754664985725,2.97123135,176.34,176.29,108.61]
[1754664986018,3.01,176.32,176.3,0.43]
[1754664986724,3.01,176.32,176.29,108.18]
[1754664987026,3.01,176.32,176.29,108.61]